[Event "Titled Tuesday Blitz November 22 Early 2022"]
[White "Sadubayev, Airat"]
[Black "Gjestemoen-VonHirsch, Andre"]
[WhiteFideId "13713264"]
[BlackFideId "1539531"]
[WhiteElo "2160"]
[BlackElo "2198"]
[Result "0-1"]
[Round "03"]
[TimeControl "180+1"]
[Date "2022.11.23"]
[WhiteClock "0:00:07"]
[BlackClock "0:01:05"]

1. d4 {[%clk 0:02:56]}  g6 {[%clk 0:02:59]} 2. c4 {[%clk 0:02:55]}  c5 {[%clk 0:02:55]} 3. d5 {[%clk 0:02:53]}  b5 {[%clk 0:02:55]} 4. cxb5 {[%clk 0:02:45]}  a6 {[%clk 0:02:55]} 5. bxa6 {[%clk 0:02:40]}  Bg7 {[%clk 0:02:52]} 6. Nf3 {[%clk 0:02:09]}  Nf6 {[%clk 0:02:47]} 7. Nc3 {[%clk 0:02:00]}  O-O {[%clk 0:02:46]} 8. e4 {[%clk 0:01:51]}  Qa5 {[%clk 0:02:44]} 9. Bd2 {[%clk 0:01:42]}  Bxa6 {[%clk 0:02:43]} 10. Bxa6 {[%clk 0:01:34]}  Qxa6 {[%clk 0:02:43]} 11. Qe2 {[%clk 0:01:22]}  d6 {[%clk 0:02:41]} 12. a4 {[%clk 0:01:07]}  Nfd7 {[%clk 0:02:16]} 13. Qxa6 {[%clk 0:00:43]}  Nxa6 {[%clk 0:02:15]} 14. O-O {[%clk 0:00:43]}  Rfb8 {[%clk 0:02:13]} 15. Rfb1 {[%clk 0:00:31]}  Nb4 {[%clk 0:02:03]} 16. Ne1 {[%clk 0:00:15]}  Nb6 {[%clk 0:01:57]} 17. Nb5 {[%clk 0:00:11]}  Rxa4 {[%clk 0:01:50]} 18. Rxa4 {[%clk 0:00:06]}  Nxa4 {[%clk 0:01:51]} 19. b3 {[%clk 0:00:04]}  Rxb5 {[%clk 0:01:39]} 20. bxa4 {[%clk 0:00:02]}  Ra5 {[%clk 0:01:40]} 21. Bxb4 {[%clk 0:00:02]}  cxb4 {[%clk 0:01:40]} 22. Rxb4 {[%clk 0:00:03]}  Bc3 {[%clk 0:01:40]} 23. Rb8+ {[%clk 0:00:03]}  Kg7 {[%clk 0:01:40]} 24. Nf3 {[%clk 0:00:04]}  Rxa4 {[%clk 0:01:40]} 25. g3 {[%clk 0:00:04]}  Rxe4 {[%clk 0:01:40]} 26. Kg2 {[%clk 0:00:04]}  Re2 {[%clk 0:01:35]} 27. Rb7 {[%clk 0:00:04]}  Kf6 {[%clk 0:01:34]} 28. Rb3 {[%clk 0:00:03]}  Bb2 {[%clk 0:01:21]} 29. Rd3 {[%clk 0:00:03]}  h6 {[%clk 0:01:11]} 30. Rb3 {[%clk 0:00:03]}  g5 {[%clk 0:01:06]} 31. h4 {[%clk 0:00:03]}  g4 {[%clk 0:01:05]} 32. Nh2 {[%clk 0:00:04]}  h5 {[%clk 0:01:04]} 33. Nf1 {[%clk 0:00:04]}  Bd4 {[%clk 0:01:03]} 34. Ne3 {[%clk 0:00:03]}  Bxe3 {[%clk 0:01:01]} 35. Rxe3 {[%clk 0:00:04]}  Rxe3 {[%clk 0:01:01]} 36. fxe3 {[%clk 0:00:05]}  Ke5 {[%clk 0:01:02]} 37. Kf2 {[%clk 0:00:05]}  Kxd5 {[%clk 0:01:02]} 38. Ke2 {[%clk 0:00:06]}  Ke4 {[%clk 0:01:02]} 39. Kf2 {[%clk 0:00:06]}  e5 {[%clk 0:01:03]} 40. Ke2 {[%clk 0:00:07]}  f5 {[%clk 0:01:04]} 41. Kf2 {[%clk 0:00:07]}  f4 {[%clk 0:01:04]} 42. exf4 {[%clk 0:00:08]}  exf4 {[%clk 0:01:05]} 43. gxf4 {[%clk 0:00:08]}  Kxf4 {[%clk 0:01:06]} 44. Kg2 {[%clk 0:00:09]}  g3 {[%clk 0:01:06]} 45. Kh3 {[%clk 0:00:08]}  d5 {[%clk 0:01:07]} 46. Kg2 {[%clk 0:00:08]}  Kg4 {[%clk 0:01:07]} 47. Kg1 {[%clk 0:00:08]}  Kf3 {[%clk 0:01:07]} 48. Kh1 {[%clk 0:00:07]}  g2+ {[%clk 0:01:05]} 49. Kh2 {[%clk 0:00:06]}  d4 {[%clk 0:01:04]} 50. Kg1 {[%clk 0:00:05]}  d3 {[%clk 0:01:05]} 51. Kh2 {[%clk 0:00:06]}  d2 {[%clk 0:01:05]} 52. Kh3 {[%clk 0:00:06]}  d1=Q {[%clk 0:01:04]} 53. Kh2 {[%clk 0:00:07]}  Qh1# {[%clk 0:01:05]} 0-1


[Site "https://www.chess.com"]

[Event "Titled Tuesday Blitz November 22 Early 2022"]
[White "Safin, Robert"]
[Black "Ai, Evan"]
[WhiteFideId "34189120"]
[BlackFideId "2094770"]
[WhiteElo "2253"]
[BlackElo "1963"]
[Result "1-0"]
[Round "03"]
[TimeControl "180+1"]
[Date "2022.11.23"]
[WhiteClock "0:00:10"]
[BlackClock "0:00:29"]

1. e4 {[%clk 0:03:00]}  e5 {[%clk 0:02:58]} 2. Nf3 {[%clk 0:03:00]}  Nc6 {[%clk 0:02:58]} 3. d4 {[%clk 0:03:00]}  exd4 {[%clk 0:02:59]} 4. Nxd4 {[%clk 0:02:58]}  Nf6 {[%clk 0:03:00]} 5. Nxc6 {[%clk 0:02:56]}  bxc6 {[%clk 0:03:01]} 6. e5 {[%clk 0:02:55]}  Nd5 {[%clk 0:03:01]} 7. c4 {[%clk 0:02:51]}  Nb6 {[%clk 0:03:01]} 8. Bd3 {[%clk 0:02:50]}  Qe7 {[%clk 0:02:59]} 9. O-O {[%clk 0:02:50]}  g6 {[%clk 0:02:55]} 10. f4 {[%clk 0:02:43]}  Nxc4 {[%clk 0:02:41]} 11. Kh1 {[%clk 0:02:27]}  Nb6 {[%clk 0:02:34]} 12. f5 {[%clk 0:02:21]}  gxf5 {[%clk 0:02:28]} 13. Qh5 {[%clk 0:02:16]}  Bb7 {[%clk 0:02:17]} 14. Bg5 {[%clk 0:02:15]}  Qb4 {[%clk 0:01:34]} 15. Nc3 {[%clk 0:02:00]}  Be7 {[%clk 0:01:32]} 16. Bxf5 {[%clk 0:01:48]}  O-O-O {[%clk 0:01:26]} 17. a3 {[%clk 0:01:47]}  Qxb2 {[%clk 0:01:23]} 18. Bxe7 {[%clk 0:01:39]}  Qxc3 {[%clk 0:01:23]} 19. Bxd8 {[%clk 0:01:39]}  Rxd8 {[%clk 0:01:24]} 20. Qxf7 {[%clk 0:01:35]}  Qxe5 {[%clk 0:01:23]} 21. a4 {[%clk 0:01:30]}  c5 {[%clk 0:01:21]} 22. a5 {[%clk 0:01:26]}  Nd5 {[%clk 0:01:21]} 23. a6 {[%clk 0:01:18]}  Bc6 {[%clk 0:01:21]} 24. Bh3 {[%clk 0:00:54]}  c4 {[%clk 0:01:03]} 25. Rad1 {[%clk 0:00:34]}  Ne3 {[%clk 0:01:01]} 26. Qxd7+ {[%clk 0:00:11]}  Bxd7 {[%clk 0:00:41]} 27. Bxd7+ {[%clk 0:00:10]}  Kb8 {[%clk 0:00:29]} 28. Rb1+ {[%clk 0:00:10]} 1-0


[Site "https://www.chess.com"]

[Event "Titled Tuesday Blitz November 22 Early 2022"]
[White "Sarana, Alexey"]
[Black "Munkhgal, Gombosuren"]
[WhiteFideId "24133795"]
[BlackFideId "4901266"]
[WhiteElo "2708"]
[BlackElo "2576"]
[Result "1-0"]
[Round "03"]
[TimeControl "180+1"]
[Date "2022.11.22"]
[WhiteClock "0:00:04"]
[BlackClock "0:00:01"]

1. c4 {[%clk 0:02:58]}  e6 {[%clk 0:02:59]} 2. Nc3 {[%clk 0:02:58]}  d5 {[%clk 0:03:00]} 3. d4 {[%clk 0:02:59]}  a6 {[%clk 0:02:57]} 4. cxd5 {[%clk 0:02:58]}  exd5 {[%clk 0:02:58]} 5. Nf3 {[%clk 0:02:59]}  Nf6 {[%clk 0:02:54]} 6. Bg5 {[%clk 0:02:58]}  Be6 {[%clk 0:02:54]} 7. e3 {[%clk 0:02:58]}  Nbd7 {[%clk 0:02:55]} 8. Bd3 {[%clk 0:02:57]}  Bd6 {[%clk 0:02:55]} 9. Nd2 {[%clk 0:02:56]}  c6 {[%clk 0:02:55]} 10. Qc2 {[%clk 0:02:50]}  Qc7 {[%clk 0:02:53]} 11. f4 {[%clk 0:02:50]}  h6 {[%clk 0:02:47]} 12. Bh4 {[%clk 0:02:50]}  g5 {[%clk 0:02:47]} 13. fxg5 {[%clk 0:02:08]}  hxg5 {[%clk 0:02:48]} 14. Bxg5 {[%clk 0:02:08]}  Bg3+ {[%clk 0:02:48]} 15. Ke2 {[%clk 0:02:07]}  Rxh2 {[%clk 0:02:42]} 16. Rxh2 {[%clk 0:02:03]}  Bxh2 {[%clk 0:02:42]} 17. Nf3 {[%clk 0:01:28]}  Qg3 {[%clk 0:02:09]} 18. Kf1 {[%clk 0:01:25]}  Ng4 {[%clk 0:01:54]} 19. Qe2 {[%clk 0:01:04]}  Qc7 {[%clk 0:01:49]} 20. e4 {[%clk 0:00:56]}  dxe4 {[%clk 0:01:42]} 21. Nxe4 {[%clk 0:00:48]}  Bf4 {[%clk 0:01:41]} 22. Kg1 {[%clk 0:00:45]}  Bh2+ {[%clk 0:01:37]} 23. Kf1 {[%clk 0:00:45]}  Bf4 {[%clk 0:01:37]} 24. Kg1 {[%clk 0:00:40]}  Bh2+ {[%clk 0:01:37]} 25. Kh1 {[%clk 0:00:40]}  Bf4 {[%clk 0:01:20]} 26. Bh4 {[%clk 0:00:40]}  Nb6 {[%clk 0:01:06]} 27. Nc5 {[%clk 0:00:36]}  Qd6 {[%clk 0:00:54]} 28. Nxb7 {[%clk 0:00:31]}  Qd5 {[%clk 0:00:51]} 29. Be4 {[%clk 0:00:30]}  Qh5 {[%clk 0:00:50]} 30. Nc5 {[%clk 0:00:20]}  Bg3 {[%clk 0:00:22]} 31. Nxe6 {[%clk 0:00:19]}  fxe6 {[%clk 0:00:22]} 32. Bxc6+ {[%clk 0:00:19]}  Kf7 {[%clk 0:00:22]} 33. Rf1 {[%clk 0:00:17]}  Kg7 {[%clk 0:00:05]} 34. Qxe6 {[%clk 0:00:06]}  Bxh4 {[%clk 0:00:05]} 35. Kg1 {[%clk 0:00:05]}  Rf8 {[%clk 0:00:02]} 36. Bd7 {[%clk 0:00:03]}  Nf2 {[%clk 0:00:01]} 37. Qe5+ {[%clk 0:00:03]}  Qxe5 {[%clk 0:00:01]} 38. Nxe5 {[%clk 0:00:04]} 1-0


[Site "https://www.chess.com"]

[Event "Titled Tuesday Blitz November 22 Early 2022"]
[White "Savic, Miroslav"]
[Black "Rottenwohrer Suarez, Juan"]
[WhiteFideId "14508494"]
[BlackFideId "32068182"]
[WhiteElo "2209"]
[BlackElo "2195"]
[Result "0-1"]
[Round "03"]
[TimeControl "180+1"]
[Date "2022.11.23"]
[WhiteClock "0:00:09"]
[BlackClock "0:01:06"]

1. Nf3 {[%clk 0:02:55]}  Nf6 {[%clk 0:02:59]} 2. c4 {[%clk 0:02:47]}  g6 {[%clk 0:03:00]} 3. Nc3 {[%clk 0:02:44]}  Bg7 {[%clk 0:03:00]} 4. e4 {[%clk 0:02:44]}  c5 {[%clk 0:03:01]} 5. Be2 {[%clk 0:02:40]}  Nc6 {[%clk 0:03:01]} 6. Kf1 {[%clk 0:02:40]}  O-O {[%clk 0:03:01]} 7. d3 {[%clk 0:02:39]}  d6 {[%clk 0:03:00]} 8. Bg5 {[%clk 0:02:38]}  h6 {[%clk 0:03:00]} 9. Bh4 {[%clk 0:02:38]}  a6 {[%clk 0:02:59]} 10. Qd2 {[%clk 0:02:28]}  Bg4 {[%clk 0:02:58]} 11. Bxf6 {[%clk 0:02:25]}  exf6 {[%clk 0:02:54]} 12. h3 {[%clk 0:02:17]}  Be6 {[%clk 0:02:49]} 13. Nd5 {[%clk 0:02:13]}  f5 {[%clk 0:02:41]} 14. exf5 {[%clk 0:02:04]}  Bxf5 {[%clk 0:02:37]} 15. g4 {[%clk 0:02:03]}  Be6 {[%clk 0:02:36]} 16. Kg2 {[%clk 0:02:02]}  Bxd5 {[%clk 0:02:32]} 17. cxd5 {[%clk 0:02:00]}  Nb4 {[%clk 0:02:33]} 18. d4 {[%clk 0:01:38]}  Nxd5 {[%clk 0:02:32]} 19. dxc5 {[%clk 0:01:37]}  dxc5 {[%clk 0:02:33]} 20. Rhd1 {[%clk 0:01:31]}  Nb4 {[%clk 0:02:33]} 21. Qe3 {[%clk 0:01:21]}  Qa5 {[%clk 0:02:20]} 22. Qb3 {[%clk 0:01:09]}  b5 {[%clk 0:02:09]} 23. a3 {[%clk 0:01:03]}  Nc6 {[%clk 0:02:09]} 24. Qd5 {[%clk 0:00:56]}  Nd4 {[%clk 0:02:04]} 25. Nxd4 {[%clk 0:00:54]}  cxd4 {[%clk 0:02:00]} 26. Bf3 {[%clk 0:00:42]}  Rad8 {[%clk 0:01:59]} 27. Qb3 {[%clk 0:00:41]}  Qb6 {[%clk 0:01:58]} 28. Rac1 {[%clk 0:00:39]}  Qf6 {[%clk 0:01:56]} 29. Be4 {[%clk 0:00:37]}  Rd6 {[%clk 0:01:50]} 30. Rc7 {[%clk 0:00:28]}  h5 {[%clk 0:01:39]} 31. Qf3 {[%clk 0:00:25]}  Qg5 {[%clk 0:01:26]} 32. Rdc1 {[%clk 0:00:17]}  Rf6 {[%clk 0:01:24]} 33. Qg3 {[%clk 0:00:13]}  hxg4 {[%clk 0:01:20]} 34. Qxg4 {[%clk 0:00:12]}  Qd2 {[%clk 0:01:15]} 35. Rf1 {[%clk 0:00:09]}  Rf4 {[%clk 0:01:06]} 0-1


[Site "https://www.chess.com"]

[Event "Titled Tuesday Blitz November 22 Early 2022"]
[White "Seo, Jung Min"]
[Black "Tang, Andrew"]
[WhiteFideId "1734687"]
[BlackFideId "2059630"]
[WhiteElo "2455"]
[BlackElo "2581"]
[Result "0-1"]
[Round "03"]
[TimeControl "180+1"]
[Date "2022.11.22"]
[WhiteClock "0:00:50"]
[BlackClock "0:00:06"]

1. e4 {[%clk 0:02:59]}  e5 {[%clk 0:02:59]} 2. Nf3 {[%clk 0:03:00]}  Nc6 {[%clk 0:02:59]} 3. Bb5 {[%clk 0:02:59]}  g6 {[%clk 0:02:59]} 4. c3 {[%clk 0:02:57]}  a6 {[%clk 0:02:58]} 5. Bxc6 {[%clk 0:02:57]}  dxc6 {[%clk 0:02:59]} 6. d4 {[%clk 0:02:58]}  exd4 {[%clk 0:02:59]} 7. cxd4 {[%clk 0:02:59]}  Bg7 {[%clk 0:02:59]} 8. h3 {[%clk 0:02:58]}  Ne7 {[%clk 0:02:56]} 9. Nc3 {[%clk 0:02:57]}  O-O {[%clk 0:02:56]} 10. O-O {[%clk 0:02:57]}  h6 {[%clk 0:02:57]} 11. Bf4 {[%clk 0:02:57]}  g5 {[%clk 0:02:57]} 12. Be5 {[%clk 0:02:55]}  g4 {[%clk 0:02:57]} 13. hxg4 {[%clk 0:02:55]}  Bxg4 {[%clk 0:02:58]} 14. Bxg7 {[%clk 0:02:55]}  Kxg7 {[%clk 0:02:58]} 15. d5 {[%clk 0:02:52]}  Rg8 {[%clk 0:02:42]} 16. Qd3 {[%clk 0:02:45]}  Qd6 {[%clk 0:02:24]} 17. e5 {[%clk 0:02:41]}  Qg6 {[%clk 0:02:08]} 18. Qxg6+ {[%clk 0:02:40]}  Nxg6 {[%clk 0:01:11]} 19. Nh2 {[%clk 0:02:40]}  Bd7 {[%clk 0:01:08]} 20. f4 {[%clk 0:02:35]}  Kf8 {[%clk 0:01:04]} 21. g3 {[%clk 0:02:21]}  Ne7 {[%clk 0:00:48]} 22. dxc6 {[%clk 0:02:15]}  Bxc6 {[%clk 0:00:49]} 23. Kf2 {[%clk 0:02:15]}  h5 {[%clk 0:00:49]} 24. Rad1 {[%clk 0:02:13]}  Nf5 {[%clk 0:00:49]} 25. Rg1 {[%clk 0:02:12]}  Ke7 {[%clk 0:00:46]} 26. Nf3 {[%clk 0:02:08]}  Rg4 {[%clk 0:00:44]} 27. Nd5+ {[%clk 0:01:57]}  Bxd5 {[%clk 0:00:43]} 28. Rxd5 {[%clk 0:01:58]}  h4 {[%clk 0:00:36]} 29. Nxh4 {[%clk 0:01:50]}  Nxh4 {[%clk 0:00:35]} 30. gxh4 {[%clk 0:01:50]}  Rxf4+ {[%clk 0:00:35]} 31. Kg3 {[%clk 0:01:37]}  Rc4 {[%clk 0:00:35]} 32. Kh3 {[%clk 0:01:32]}  Rh8 {[%clk 0:00:32]} 33. Rg4 {[%clk 0:01:33]}  Rc2 {[%clk 0:00:33]} 34. Rgd4 {[%clk 0:01:29]}  Ke6 {[%clk 0:00:29]} 35. Rd2 {[%clk 0:01:13]}  Rc4 {[%clk 0:00:24]} 36. R2d4 {[%clk 0:01:12]}  Rxd4 {[%clk 0:00:25]} 37. Rxd4 {[%clk 0:01:12]}  Kxe5 {[%clk 0:00:25]} 38. Rd7 {[%clk 0:01:12]}  f5 {[%clk 0:00:12]} 39. Rxc7 {[%clk 0:01:12]}  b5 {[%clk 0:00:13]} 40. Ra7 {[%clk 0:01:08]}  Rh6 {[%clk 0:00:13]} 41. Re7+ {[%clk 0:01:06]}  Kf4 {[%clk 0:00:13]} 42. Re1 {[%clk 0:01:05]}  Rd6 {[%clk 0:00:10]} 43. Rf1+ {[%clk 0:01:06]}  Ke5 {[%clk 0:00:11]} 44. Rf2 {[%clk 0:00:58]}  f4 {[%clk 0:00:06]} 45. Kg4 {[%clk 0:00:56]}  Rg6+ {[%clk 0:00:06]} 46. Kh5 {[%clk 0:00:56]}  Rg8 {[%clk 0:00:05]} 47. Kh6 {[%clk 0:00:55]}  Ke4 {[%clk 0:00:04]} 48. h5 {[%clk 0:00:55]}  f3 {[%clk 0:00:04]} 49. Kh7 {[%clk 0:00:55]}  Rg2 {[%clk 0:00:04]} 50. Rf1 {[%clk 0:00:55]}  f2 {[%clk 0:00:04]} 51. h6 {[%clk 0:00:54]}  Ke3 {[%clk 0:00:04]} 52. Kh8 {[%clk 0:00:49]}  Ke2 {[%clk 0:00:05]} 53. Rc1 {[%clk 0:00:49]}  f1=Q {[%clk 0:00:05]} 54. Rxf1 {[%clk 0:00:49]}  Kxf1 {[%clk 0:00:06]} 55. h7 {[%clk 0:00:50]}  Rxb2 {[%clk 0:00:06]} 0-1


[Site "https://www.chess.com"]

[Event "Titled Tuesday Blitz November 22 Early 2022"]
[White "Shuvalov, Evgenij"]
[Black "Gabrielian, Artur"]
[WhiteFideId "4187237"]
[BlackFideId "4131002"]
[WhiteElo "2049"]
[BlackElo "2432"]
[Result "0-1"]
[Round "03"]
[TimeControl "180+1"]
[Date "2022.11.23"]
[WhiteClock "0:00:06"]
[BlackClock "0:00:23"]

1. d4 {[%clk 0:03:00]}  Nf6 {[%clk 0:02:59]} 2. c4 {[%clk 0:03:00]}  c5 {[%clk 0:02:59]} 3. d5 {[%clk 0:03:00]}  e6 {[%clk 0:02:59]} 4. Nc3 {[%clk 0:02:59]}  exd5 {[%clk 0:03:00]} 5. cxd5 {[%clk 0:03:00]}  d6 {[%clk 0:03:00]} 6. e4 {[%clk 0:03:00]}  g6 {[%clk 0:03:01]} 7. f4 {[%clk 0:02:59]}  Bg7 {[%clk 0:03:01]} 8. Bb5+ {[%clk 0:02:59]}  Nfd7 {[%clk 0:03:01]} 9. Bd3 {[%clk 0:02:58]}  O-O {[%clk 0:03:00]} 10. Nf3 {[%clk 0:02:58]}  Nf6 {[%clk 0:02:55]} 11. O-O {[%clk 0:02:57]}  Bg4 {[%clk 0:02:55]} 12. h3 {[%clk 0:02:54]}  Bxf3 {[%clk 0:02:55]} 13. Qxf3 {[%clk 0:02:55]}  Nbd7 {[%clk 0:02:55]} 14. Re1 {[%clk 0:02:46]}  Re8 {[%clk 0:02:55]} 15. Be3 {[%clk 0:02:44]}  a6 {[%clk 0:02:54]} 16. a4 {[%clk 0:02:43]}  Qc7 {[%clk 0:02:53]} 17. Bf2 {[%clk 0:02:42]}  Rab8 {[%clk 0:02:49]} 18. Rac1 {[%clk 0:02:40]}  c4 {[%clk 0:02:47]} 19. Bb1 {[%clk 0:02:35]}  b5 {[%clk 0:02:47]} 20. axb5 {[%clk 0:02:33]}  axb5 {[%clk 0:02:48]} 21. Ne2 {[%clk 0:02:27]}  Nc5 {[%clk 0:02:30]} 22. Nd4 {[%clk 0:02:22]}  Nfd7 {[%clk 0:02:22]} 23. Nc6 {[%clk 0:02:16]}  Ra8 {[%clk 0:02:21]} 24. b4 {[%clk 0:01:07]}  cxb3 {[%clk 0:02:07]} 25. e5 {[%clk 0:01:05]}  b2 {[%clk 0:01:47]} 26. Rc2 {[%clk 0:01:04]}  Ra1 {[%clk 0:01:43]} 27. Rxb2 {[%clk 0:00:55]}  dxe5 {[%clk 0:01:42]} 28. Rxb5 {[%clk 0:00:50]}  e4 {[%clk 0:01:20]} 29. Rxc5 {[%clk 0:00:17]}  Nxc5 {[%clk 0:01:16]} 30. Bxc5 {[%clk 0:00:16]}  Rxb1 {[%clk 0:01:16]} 31. Qf2 {[%clk 0:00:10]}  e3 {[%clk 0:01:11]} 32. Qe2 {[%clk 0:00:09]}  Rxe1+ {[%clk 0:01:10]} 33. Qxe1 {[%clk 0:00:10]}  Qxf4 {[%clk 0:01:09]} 34. d6 {[%clk 0:00:08]}  Qe4 {[%clk 0:00:26]} 35. d7 {[%clk 0:00:06]}  Qxc6 {[%clk 0:00:26]} 36. dxe8=Q+ {[%clk 0:00:06]}  Qxe8 {[%clk 0:00:27]} 37. Qxe3 {[%clk 0:00:07]}  Qc8 {[%clk 0:00:25]} 38. Qf2 {[%clk 0:00:07]}  Qd7 {[%clk 0:00:25]} 39. Be3 {[%clk 0:00:07]}  h5 {[%clk 0:00:24]} 40. Qf1 {[%clk 0:00:07]}  Be5 {[%clk 0:00:23]} 41. Bf4 {[%clk 0:00:07]}  Qd4+ {[%clk 0:00:23]} 42. Kh1 {[%clk 0:00:06]}  Qxf4 {[%clk 0:00:23]} 43. Qxf4 {[%clk 0:00:05]}  Bxf4 {[%clk 0:00:23]} 44. Kg1 {[%clk 0:00:06]}  Bg3 {[%clk 0:00:23]} 45. Kh1 {[%clk 0:00:06]}  Kg7 {[%clk 0:00:24]} 46. Kg1 {[%clk 0:00:07]}  Kf6 {[%clk 0:00:24]} 47. Kh1 {[%clk 0:00:07]}  Ke5 {[%clk 0:00:22]} 48. Kg1 {[%clk 0:00:07]}  Ke4 {[%clk 0:00:23]} 49. Kf1 {[%clk 0:00:06]}  Ke3 {[%clk 0:00:23]} 50. Kg1 {[%clk 0:00:06]}  Ke2 {[%clk 0:00:23]} 51. Kh1 {[%clk 0:00:06]}  g5 {[%clk 0:00:24]} 52. Kg1 {[%clk 0:00:06]}  f5 {[%clk 0:00:24]} 53. Kh1 {[%clk 0:00:07]}  g4 {[%clk 0:00:24]} 54. hxg4 {[%clk 0:00:06]}  hxg4 {[%clk 0:00:25]} 55. Kg1 {[%clk 0:00:06]}  f4 {[%clk 0:00:25]} 56. Kh1 {[%clk 0:00:05]}  f3 {[%clk 0:00:25]} 57. gxf3 {[%clk 0:00:05]}  gxf3 {[%clk 0:00:25]} 58. Kg1 {[%clk 0:00:06]}  Bf4 {[%clk 0:00:23]} 59. Kh1 {[%clk 0:00:06]}  f2 {[%clk 0:00:23]} 60. Kg2 {[%clk 0:00:06]}  f1=Q# {[%clk 0:00:23]} 0-1


[Site "https://www.chess.com"]

[Event "Titled Tuesday Blitz November 22 Early 2022"]
[White "Simonovic, Miroslav"]
[Black "Heinemann, Josefine"]
[WhiteFideId "919152"]
[BlackFideId "12900460"]
[WhiteElo "2043"]
[BlackElo "2300"]
[Result "0-1"]
[Round "03"]
[TimeControl "180+1"]
[Date "2022.11.23"]
[WhiteClock "0:00:15"]
[BlackClock "0:01:38"]

1. d4 {[%clk 0:02:56]}  Nf6 {[%clk 0:02:57]} 2. Bg5 {[%clk 0:02:56]}  Ne4 {[%clk 0:02:54]} 3. h4 {[%clk 0:02:56]}  c5 {[%clk 0:02:48]} 4. dxc5 {[%clk 0:02:56]}  Nxg5 {[%clk 0:02:47]} 5. hxg5 {[%clk 0:02:56]}  Qa5+ {[%clk 0:02:48]} 6. Nd2 {[%clk 0:02:56]}  Qxc5 {[%clk 0:02:47]} 7. Ngf3 {[%clk 0:02:53]}  g6 {[%clk 0:02:45]} 8. c3 {[%clk 0:02:53]}  Bg7 {[%clk 0:02:44]} 9. e3 {[%clk 0:02:49]}  Qc7 {[%clk 0:02:42]} 10. Bd3 {[%clk 0:02:42]}  Nc6 {[%clk 0:02:40]} 11. Qa4 {[%clk 0:02:41]}  d6 {[%clk 0:02:39]} 12. O-O-O {[%clk 0:02:40]}  Bd7 {[%clk 0:02:38]} 13. Qf4 {[%clk 0:02:28]}  Be6 {[%clk 0:02:29]} 14. Kb1 {[%clk 0:02:26]}  O-O-O {[%clk 0:02:22]} 15. Bc4 {[%clk 0:02:20]}  Ne5 {[%clk 0:02:19]} 16. Bxe6+ {[%clk 0:02:15]}  fxe6 {[%clk 0:02:14]} 17. Nb3 {[%clk 0:02:03]}  Kb8 {[%clk 0:02:08]} 18. Nxe5 {[%clk 0:01:57]}  Bxe5 {[%clk 0:02:07]} 19. Qf7 {[%clk 0:01:57]}  Rdf8 {[%clk 0:02:04]} 20. Qxe6 {[%clk 0:01:56]}  Rxf2 {[%clk 0:02:03]} 21. Rdf1 {[%clk 0:01:32]}  Rhf8 {[%clk 0:02:01]} 22. Rxf2 {[%clk 0:01:30]}  Rxf2 {[%clk 0:02:00]} 23. Rxh7 {[%clk 0:01:06]}  a6 {[%clk 0:01:42]} 24. Rxe7 {[%clk 0:01:05]}  Qc6 {[%clk 0:01:42]} 25. Re8+ {[%clk 0:00:17]}  Ka7 {[%clk 0:01:41]} 26. Qg8 {[%clk 0:00:15]}  Qe4+ {[%clk 0:01:38]} 0-1


[Site "https://www.chess.com"]

[Event "Titled Tuesday Blitz November 22 Early 2022"]
[White "Sokolovsky, Yahli"]
[Black "Khandelwal, Ankush"]
[WhiteFideId "2820242"]
[BlackFideId "413470"]
[WhiteElo "2316"]
[BlackElo "2271"]
[Result "0-1"]
[Round "03"]
[TimeControl "180+1"]
[Date "2022.11.23"]
[WhiteClock "0:00:59"]
[BlackClock "0:00:27"]

1. b3 {[%clk 0:03:00]}  e5 {[%clk 0:02:57]} 2. Bb2 {[%clk 0:03:01]}  Nc6 {[%clk 0:02:56]} 3. e3 {[%clk 0:03:01]}  Nf6 {[%clk 0:02:40]} 4. Nf3 {[%clk 0:03:00]}  e4 {[%clk 0:02:35]} 5. Nd4 {[%clk 0:03:00]}  Bc5 {[%clk 0:02:32]} 6. Nxc6 {[%clk 0:02:56]}  dxc6 {[%clk 0:02:33]} 7. c4 {[%clk 0:02:54]}  O-O {[%clk 0:02:32]} 8. Nc3 {[%clk 0:02:53]}  Re8 {[%clk 0:02:20]} 9. Qc2 {[%clk 0:02:51]}  Bg4 {[%clk 0:01:42]} 10. h3 {[%clk 0:02:50]}  Bh5 {[%clk 0:01:42]} 11. g4 {[%clk 0:02:49]}  Bg6 {[%clk 0:01:42]} 12. O-O-O {[%clk 0:02:49]}  a5 {[%clk 0:01:41]} 13. d4 {[%clk 0:02:48]}  exd3 {[%clk 0:01:31]} 14. Bxd3 {[%clk 0:02:48]}  Bxd3 {[%clk 0:01:28]} 15. Rxd3 {[%clk 0:02:49]}  Qe7 {[%clk 0:01:28]} 16. Rhd1 {[%clk 0:02:38]}  Ba3 {[%clk 0:01:28]} 17. Bxa3 {[%clk 0:02:31]}  Qxa3+ {[%clk 0:01:29]} 18. Qb2 {[%clk 0:02:32]}  Qc5 {[%clk 0:01:11]} 19. Kb1 {[%clk 0:02:25]}  b5 {[%clk 0:01:11]} 20. Rd4 {[%clk 0:02:19]}  a4 {[%clk 0:01:09]} 21. b4 {[%clk 0:02:17]}  Qe5 {[%clk 0:00:53]} 22. c5 {[%clk 0:02:07]}  Qh2 {[%clk 0:00:53]} 23. g5 {[%clk 0:01:45]}  Nd5 {[%clk 0:00:51]} 24. Nxd5 {[%clk 0:01:36]}  cxd5 {[%clk 0:00:51]} 25. Rxd5 {[%clk 0:01:37]}  a3 {[%clk 0:00:47]} 26. Qb3 {[%clk 0:01:10]}  Qxf2 {[%clk 0:00:44]} 27. Rd7 {[%clk 0:01:11]}  Rxe3 {[%clk 0:00:27]} 28. Qxe3 {[%clk 0:00:59]}  Qb2# {[%clk 0:00:27]} 0-1


[Site "https://www.chess.com"]